[Event "Polish Youth Ekstraliga 2022"]
[Site "Lublin"]
[Date "2022.06.29"]
[Round "5.16"]
[White "Terkiewicz, Bruno"]
[Black "Rekuc, Patryk"]
[Result "1/2-1/2"]
[ECO "B32"]
[WhiteElo "1320"]
[BlackElo "1842"]
[Annotator "NA RC"]
[PlyCount "110"]
[EventDate "2022.06.24"]
[EventType "team-tourn"]
[EventCountry "POL"]
[SourceTitle "playchess.com"]
[Source "ChessBase"]
[SourceQuality "1"]
[TimeControl "40/5400+30:1800+30"]

1. e4 {[%emt 0:00:01]} c5 {[%emt 0:00:05]} 2. Nf3 {[%emt 0:00:01]} Nc6 {[%emt 0:00:09]} 3. d4 {[%emt 0:00:02]} cxd4 {[%emt 0:00:07]} 4. Nxd4 {[%emt 0:00:02]} e5 {[%emt 0:00:06]} 5. Nb5 {[%emt 0:00:02]} d6 {[%emt 0:00:05]} 6. N1c3 {[%emt 0:00:03]} a6 {[%emt 0:00:06]} 7. Na3 {[%emt 0:00:04]} Be6 {[%emt 0:00:06]} 8. Nd5 {[%emt 0:04:31]} Nf6 {[%emt 0:00:14]} 9. Bg5 {[%emt 0:00:24] 9.Bg5 is better than 9.Nxf6+.} Bxd5 {[%emt 0:00:09]} 10. exd5 {[%emt 0:03:22]} Nb8 {[%emt 0:00:10] [#]} 11. c4 $146 {[%emt 0:02:02]} ({Predecessor:} 11. c3 Nbd7 12. Be2 Be7 13. Nc4 O-O 14. O-O Ne8 15. Bxe7 Qxe7 16. Na5 Qd8 17. b4 Qc7 {½-½ (25) Bartoszczuk,A (1434)-Rekuc,P (1662) Poronin 2022}) 11... Nbd7 {[%emt 0:01:59]} 12. Bd3 {[%emt 0:00:33]} Be7 {[%emt 0:01:26]} 13. O-O {[%emt 0:00:11]} O-O {[%emt 0:03:21]} 14. Qe2 {[%emt 0:05:18]} Rc8 {[%emt 0:08:11]} 15. Rae1 {[%emt 0:10:58]} h6 {[%emt 0:02:23]} 16. Bc1 {[%emt 0:08:42]} Re8 {[%emt 0:04:12]} 17. Bb1 {[%emt 0:03:53]} Bf8 {[%emt 0:05:26]} 18. b3 {[%emt 0:11:52]} Qa5 {[%emt 0:01:25]} 19. Nc2 {[%emt 0:14:20]} b5 {[%emt 0:01:41]} 20. Ne3 {[%emt 0:01:27]} bxc4 {[%emt 0:00:47]} 21. bxc4 {[%emt 0:00:07]} Nb6 {[%emt 0:01:07]} 22. Bd2 {[%emt 0:05:13]} Qc5 {[%emt 0:03:16]} 23. Bf5 {[%emt 0:03:15]} Rb8 {[%emt 0:01:29]} 24. Rb1 {[%emt 0:01:17]} Nbd7 {[%emt 0:02:04]} 25. Ng4 {[%emt 0:00:57]} Red8 {[%emt 0:03:45]} 26. Rb3 {[%emt 0:05:43]} Nxg4 {[%emt 0:01:42]} 27. Qxg4 {[%emt 0:00:13]} Nf6 {[%emt 0:00:12]} 28. Qh4 {[%emt 0:00:32]} Rxb3 {[%emt 0:01:40]} 29. axb3 {[%emt 0:00:16]} Be7 {[%emt 0:00:42]} 30. Qg3 {[%emt 0:00:22]} Kh8 {[%emt 0:02:53]} 31. Ra1 {[%emt 0:01:03]} Ra8 {[%emt 0:02:57]} 32. Qe3 {[%emt 0:01:19]} Qxe3 {[%emt 0:03:06]} 33. Bxe3 {[%emt 0:00:04]} g6 {[%emt 0:00:16]} 34. Bc2 {[%emt 0:00:27]} Kg7 {[%emt 0:00:06]} 35. f3 {[%emt 0:01:38]} Nd7 {[%emt 0:01:51]} 36. Kf2 {[%emt 0:02:49]} f5 {[%emt 0:01:33]} 37. Ke2 {[%emt 0:00:59]} Bg5 {[%emt 0:01:46]} 38. Bxg5 {[%emt 0:00:05]} hxg5 {[%emt 0:00:04]} 39. g4 {[%emt 0:00:48]} Kf6 {[%emt 0:05:23]} 40. h3 {[%emt 0:00:00]} Ra7 {[%emt 0:00:00] [#]} 41. Ra5 $11 {[%emt 0:26:33]} (41. b4 $1 $16) 41... Ra8 {[%emt 0:18:17]} 42. b4 {[%emt 0:12:37]} Ra7 {[%emt 0:12:10]} (42... e4 $16 {was worth a try.}) 43. Ba4 {[%emt 0:01:45]} (43. c5 $18 {is more deadly.}) 43... Nb6 {[%emt 0:01:03]} 44. Bb5 {[%emt 0:01:19]} (44. Bb3 $16) 44... Rc7 {[%emt 0:01:02]} 45. Rxa6 {[%emt 0:00:06]} Nxc4 {[%emt 0:00:16]} 46. Bxc4 {[%emt 0:00:08]} Rxc4 {[%emt 0:00:05]} 47. Rxd6+ {[%emt 0:00:05]} Kf7 {[%emt 0:00:49]} 48. b5 {[%emt 0:02:08]} Rb4 {[%emt 0:01:30]} 49. b6 {[%emt 0:00:13]} Rb3 {[%emt 0:01:50]} 50. Re6 {[%emt 0:00:53]} e4 {[%emt 0:00:29]} 51. fxe4 {[%emt 0:00:32]} fxe4 {[%emt 0:00:08]} 52. Rxe4 {[%emt 0:00:39]} Rxb6 {[%emt 0:00:07]} 53. Rd4 {[%emt 0:00:49]} Ke7 {[%emt 0:00:58]} 54. Ke3 {[%emt 0:01:39]} Kd6 {[%emt 0:00:16]} 55. Rd3 {[%emt 0:00:28]} Rb4 {[%emt 0:00:05]} 1/2-1/2

[Event "Polish Youth Ekstraliga 2022"]
[Site "Lublin"]
[Date "2022.06.29"]
[Round "5.17"]
[White "Marcinczyk, Monika"]
[Black "Bukala, Weronika"]
[Result "1-0"]
[ECO "B12"]
[WhiteElo "1991"]
[BlackElo "1827"]
[Annotator "TA"]
[PlyCount "101"]
[EventDate "2022.06.24"]
[EventType "team-tourn"]
[EventCountry "POL"]
[SourceTitle "playchess.com"]
[Source "ChessBase"]
[SourceQuality "1"]
[TimeControl "40/5400+30:1800+30"]

{[%evp 11,101,23,40,50,53,29,58,33,89,54,86,-11,0,0,-10,0,71,56,47,91,305,253,263,224,243,185,172,174,281,38,120,0,0,-22,-24,-14,-29,-122,0,0,0,0,0,0,354,361,541,556,518,508,502,398,399,386,399,388,391,392,395,391,391,380,383,370,387,371,515,515,508,508,493,490,468,371,368,365,360,361,357,355,519,517,666,646,606,595,580,559,514,328,1028,995]} 1. e4 {[%emt 0:00:02]} c6 {[%emt 0:01:02]} 2. d4 {[%emt 0:00:02]} d5 {[%emt 0:00:40]} 3. e5 {[%emt 0:00:07]} Bf5 {[%emt 0:03:56]} 4. Nf3 {[%emt 0:00:07]} e6 {[%emt 0:01:36]} 5. Be2 {[%emt 0:00:12]} Nd7 {[%emt 0:04:10]} 6. O-O {[%emt 0:00:50]} Be7 {[%emt 0:03:09]} 7. Nbd2 {[%emt 0:10:43] B12: Caro-Kann: Advance Variation.} g5 {[%emt 0:08:47] [#]} 8. a4 $146 {[%emt 0:15:02]} ({Predecessor:} 8. Nb3 h5 9. Ne1 h4 10. h3 Nh6 11. Nd3 Rg8 12. a4 Qc7 13. a5 a6 14. Ra4 O-O-O {1-0 (80) Caspi,I (2461)-Grinshpun,E (2360) Israel 2018}) 8... Qc7 {[%emt 0:04:48]} 9. Nb3 {[%emt 0:04:10] White is slightly better.} h6 {[%emt 0:04:25]} (9... g4 $14) 10. Be3 {[%emt 0:05:56][%cal Bc1e3,Be3f4,Bf4g3][%mdl 32]} f6 {[%emt 0:02:45]} 11. Ne1 {[%emt 0:04:35]} (11. Bd3 $16) 11... fxe5 $11 {[%emt 0:05:12]} 12. Bh5+ {[%emt 0:00:35]} Kd8 $1 {[%emt 0:00:14]} 13. dxe5 {[%emt 0:02:12]} c5 {[%emt 0:01:07]} (13... Nxe5 $11 {keeps the balance.} 14. Nf3 Nxf3+ 15. Bxf3 Nf6) 14. f4 $16 {[%emt 0:08:05]} gxf4 {[%emt 0:02:24]} 15. Bxf4 {[%emt 0:00:23] Black must now prevent Bg4.} Nxe5 {[%emt 0:02:38]} (15... Bg5 $16) 16. c4 {[%emt 0:05:10]} Nf6 {[%emt 0:04:28]} 17. cxd5 {[%emt 0:02:11]} Nxd5 {[%emt 0:00:37]} 18. Kh1 {[%emt 0:19:46]} (18. Nf3 Nxf3+ 19. Rxf3 Bd6 20. Bxd6 Qxd6 $16) 18... Kc8 {[%emt 0:03:53]} 19. Bg3 {[%emt 0:00:20]} Rf8 {[%emt 0:17:30]} (19... Rg8 {was worth a try.}) 20. Qc1 $2 {[%emt 0:04:56]} (20. Nf3 $18) 20... Kd7 {[%emt 0:06:51]} (20... Nf6 $14 21. Bf3 Nfd7) 21. Nf3 {[%emt 0:00:59]} (21. Be2 $16 Bd6 22. Bb5+ Kd8 23. Qxh6 (23. Bxe5 Bxe5 24. Nd3 Bd6 $16)) 21... Nd3 $36 {[%emt 0:01:42][%mdl 2048] Black fights for an advantage.} 22. Bxc7 {[%emt 0:07:13] Dancing on a razor blade.} Nxc1 {[%emt 0:00:02]} 23. Raxc1 {[%emt 0:00:18]} Kxc7 {[%emt 0:01:04]} 24. Ne5 {[%emt 0:02:58] [#]} ({Of course not} 24. Nxc5 Bxc5 25. Rxc5+ Kd6 $17) (24. Nfd4 $1 $11) 24... b6 {[%emt 0:04:09]} ({Better is} 24... Bc2 $1 $17 {[%mdl 512]} 25. Rxf8 Rxf8) 25. Nd4 $1 {[%emt 0:00:11]} Bg5 {[%emt 0:04:19] This bishop pair is nice.} 26. Nb5+ {[%emt 0:01:33]} Kd8 {[%emt 0:01:38]} 27. Rcd1 {[%emt 0:00:38] Bg4 is the strong threat.} Bf6 $2 {[%emt 0:01:03][%mdl 8192] White now steadily converts the win.} (27... Ke7 $11 {and Black is okay.}) 28. Rxf5 $18 {[%emt 0:00:24][%cal Oe5g6][%mdl 64] [#] Threatens to win with Ng6! Deflection} exf5 {[%emt 0:00:10]} (28... a6 $142 29. Nc3 exf5) 29. Rxd5+ {[%emt 0:00:09]} Kc8 {[%emt 0:00:23]} 30. Nd7 {[%emt 0:01:19]} a6 {[%emt 0:00:53]} 31. Nxf8 {[%emt 0:01:20]} axb5 {[%emt 0:00:09]} 32. Nd7 {[%emt 0:01:42]} Bd8 {[%emt 0:00:35]} 33. axb5 {[%emt 0:01:03]} Ra5 {[%emt 0:04:24]} 34. Be2 {[%emt 0:00:05]} Ra1+ {[%emt 0:00:08]} 35. Bd1 {[%emt 0:00:04]} Ra5 {[%emt 0:00:04]} 36. g3 {[%emt 0:01:06]} Rxb5 {[%emt 0:00:23]} 37. b3 {[%emt 0:00:07]} Rb4 {[%emt 0:00:52]} 38. Ne5 {[%emt 0:01:23]} Bc7 {[%emt 0:01:28]} 39. Nc6 {[%emt 0:00:37]} Re4 {[%emt 0:00:25]} 40. Bf3 {[%emt 0:00:00]} Re3 {[%emt 0:00:00]} 41. Rxf5 {[%emt 0:07:45]} Rxb3 {[%emt 0:03:49]} 42. Rf8+ {[%emt 0:02:29]} Kd7 {[%emt 0:00:24][%cal Ob3f3]} 43. Rf7+ {[%emt 0:00:51]} Ke6 {[%emt 0:03:02]} 44. Bh5 {[%emt 0:03:17]} ({Less strong is} 44. Rxc7 Rxf3 45. Kg2 Rf6 $18) 44... Bd6 {[%emt 0:07:33]} 45. Nd8+ {[%emt 0:01:20]} Kd5 {[%emt 0:01:49]} (45... Ke5 {was necessary.} 46. Rd7 Bf8) 46. Rd7 {[%emt 0:00:29] aiming for Bf7+.} Rb1+ {[%emt 0:01:48]} 47. Kg2 {[%emt 0:00:06]} Rb2+ {[%emt 0:02:01]} 48. Kh3 {[%emt 0:00:14]} Rf2 {[%emt 0:00:08]} 49. Bf7+ {[%emt 0:02:40]} Ke5 {[%emt 0:00:19]} 50. Nc6+ {[%emt 0:00:36]} Kf6 $2 {[%emt 0:00:08]} (50... Ke4 51. Be6 Rd2) 51. Bd5 {[%emt 0:01:32] Weighted Error Value: White=0.28 (precise) /Black=0.60} 1-0

[Event "Polish Youth Ekstraliga 2022"]
[Site "Lublin"]
[Date "2022.06.29"]
[Round "5.19"]
[White "Chyzy, Jakub"]
[Black "Kutowski, Marcel"]
[Result "1-0"]
[ECO "B23"]
[WhiteElo "2191"]
[BlackElo "1954"]
[Annotator "TA"]
[PlyCount "85"]
[EventDate "2022.06.24"]
[EventType "team-tourn"]
[EventCountry "POL"]
[SourceTitle "playchess.com"]
[Source "ChessBase"]
[SourceQuality "1"]
[TimeControl "40/5400+30:1800+30"]

{[%evp 9,85,0,0,-1,48,46,46,50,59,55,59,46,56,62,77,23,16,6,0,-77,-50,-70,-69,-94,-97,-173,-88,-114,0,0,0,-116,-114,-98,-105,-83,-54,-81,82,68,116,116,118,116,217,212,214,208,377,367,357,345,461,461,494,493,764,783,758,679,1164,989,4778,4744,4710,1697,4710,4702,29959,29970,29968,29967,29981,29982,29979,29980,29938,5316]} 1. e4 {[%emt 0:02:02]} c5 {[%emt 0:00:06]} 2. Nc3 {[%emt 0:00:05]} a6 {[%emt 0:00:15]} 3. d4 {[%emt 0:00:20]} cxd4 {[%emt 0:00:18]} 4. Qxd4 {[%emt 0:00:03]} Nc6 {[%emt 0:00:27]} 5. Qd2 {[%emt 0:00:07]} d6 {[%emt 0:05:11]} 6. b3 {[%emt 0:00:25] B23: Closed Sicilian: Lines without g3.} g6 {[%emt 0:03:07]} (6... b5 $11) 7. Bb2 $14 {[%emt 0:00:18]} Bh6 {[%emt 0:01:22]} 8. f4 {[%emt 0:00:07] White is slightly better.} e5 {[%emt 0:01:12]} 9. g3 {[%emt 0:01:10]} Nf6 {[%emt 0:01:29]} 10. O-O-O {[%emt 0:01:36]} O-O {[%emt 0:04:38]} 11. Kb1 {[%emt 0:00:01]} Nd4 {[%emt 0:07:09] [#]} 12. Qf2 $146 {[%emt 0:00:21]} (12. Bg2 $16) ({Predecessor:} 12. Nge2 Bg4 13. h3 Bf3 14. Rh2 Nxe2 15. Bxe2 Nxe4 16. Qe3 Nxc3+ 17. Qxc3 Be4 18. fxe5 {0-1 (28) Berger,S (2408)-Kruglyakov,P (2357) Chess.com INT 2020}) 12... b5 $11 {[%emt 0:08:13]} 13. Bg2 {[%emt 0:13:27]} Bb7 {[%emt 0:09:02]} 14. Nd5 {[%emt 0:08:48]} (14. Nf3 $11 {remains equal.} b4 15. Nxd4 bxc3 16. fxe5) 14... Bxd5 $17 {[%emt 0:06:28]} 15. exd5 {[%emt 0:02:15]} Rc8 $1 {[%emt 0:02:00]} (15... Ng4 16. Qd2 $11) 16. c3 {[%emt 0:20:45]} Ng4 {[%emt 0:06:44]} 17. Qe1 {[%emt 0:06:22] [#]} (17. Qd2 $17 Nf5 18. Bh3) 17... Nf5 {[%emt 0:01:04]} ({Better is} 17... Re8 $1 $19 {[%cal Oe5f4]} 18. Qd2 (18. cxd4 $2 exf4 19. Qf1 Ne3 $19) 18... Nf5) 18. Bh3 {[%emt 0:00:18]} Nge3 {[%emt 0:09:09]} (18... Nfe3 $17 19. Bxg4 Nxg4) 19. Bxf5 $11 {[%emt 0:02:05]} Nxd1 {[%emt 0:01:20]} 20. Qxd1 {[%emt 0:33:41]} (20. Bxc8 $11 Nxb2 21. Bxa6 (21. Kxb2 Qxc8 22. fxe5 Re8 $17)) 20... gxf5 $17 {[%emt 0:01:03]} 21. Nf3 {[%emt 0:00:01][%cal Bg1f3,Bf3h4,Bh4f5][%mdl 32]} Re8 {[%emt 0:04:59]} 22. Nh4 {[%emt 0:00:25]} exf4 {[%emt 0:17:51]} 23. Nxf5 {[%emt 0:00:59] [#]} Qg5 {[%emt 0:00:34]} (23... Qf6 $1 $17 {[%cal Rf6f5]} 24. Qg4+ Bg7 25. gxf4 Rc7) 24. Qg4 $16 {[%emt 0:02:13] White now steadily converts the win.} Kf8 {[%emt 0:03:54]} (24... Qg6 $1 $14) 25. Qxg5 {[%emt 0:01:41]} Bxg5 {[%emt 0:00:05]} 26. Nxd6 {[%emt 0:00:34]} Rcd8 {[%emt 0:02:55]} (26... Rc5 $16) 27. Nxe8 $18 {[%emt 0:00:20]} Kxe8 {[%emt 0:00:14][%mdl 4096] Endgame KRB-KRB} 28. Re1+ {[%emt 0:00:28]} Kf8 $2 {[%emt 0:01:14]} (28... Kd7 29. gxf4 Be7) 29. Ba3+ {[%emt 0:00:33]} Kg7 {[%emt 0:00:06]} 30. c4 {[%emt 0:00:50][%cal Bc3c4,Bc4c5,Bc5c6][%mdl 32]} fxg3 {[%emt 0:01:02]} 31. hxg3 {[%emt 0:00:14]} f5 {[%emt 0:01:04]} 32. d6 {[%emt 0:00:52]} f4 {[%emt 0:00:27]} (32... bxc4 $142 33. bxc4 f4 34. gxf4 Bxf4) 33. gxf4 {[%emt 0:00:50]} Bxf4 {[%emt 0:00:04]} 34. c5 {[%emt 0:00:07]} h5 {[%emt 0:00:51]} 35. c6 {[%emt 0:02:14]} h4 {[%emt 0:01:51]} 36. d7 {[%emt 0:00:18] Be7 would kill now.} Bc7 {[%emt 0:00:18]} 37. Be7 {[%emt 0:01:00]} (37. Rd1 $142 Kf7 38. Bd6) 37... Rh8 {[%emt 0:00:05]} 38. Rd1 {[%emt 0:00:48]} h3 {[%emt 0:01:01]} 39. d8=Q {[%emt 0:00:10] White mates.} Bxd8 {[%emt 0:00:10]} 40. Bxd8 {[%emt 0:00:00]} ({Don't go for} 40. Rxd8 $2 Rxd8 41. c7 (41. Bxd8 $2 {too greedy.} h2 $19) 41... Rg8 $19) 40... h2 {[%emt 0:00:00] [#]} 41. c7 $1 {[%emt 0:00:09]} h1=Q {[%emt 0:00:41]} 42. Rxh1 {[%emt 0:00:08]} Rxh1+ {[%emt 0:00:02]} 43. Kc2 {[%emt 0:00:06] Weighted Error Value: White=0.15 (very precise) /Black=0.58} (43. Kb2 $142 Rh2+ 44. Kb1 Rh6 45. c8=Q Rg6 46. Be7 Rg1+ 47. Kc2 Rg2+ 48. Kd3) 1-0

[Event "Polish Youth Ekstraliga 2022"]
[Site "Lublin"]
[Date "2022.06.29"]
[Round "5.20"]
[White "Wilk, Igor"]
[Black "Krawczyk, Flawian"]
[Result "0-1"]
[ECO "B50"]
[WhiteElo "1824"]
[BlackElo "2212"]
[Annotator "TA"]
[PlyCount "78"]
[EventDate "2022.06.24"]
[EventType "team-tourn"]
[EventCountry "POL"]
[SourceTitle "playchess.com"]
[Source "ChessBase"]
[SourceQuality "1"]
[TimeControl "40/5400+30:1800+30"]

{[%evp 14,78,10,17,14,-12,0,16,10,8,52,6,81,87,82,81,85,74,110,60,104,71,56,-25,-12,0,42,76,67,15,76,6,7,4,4,14,14,12,125,117,108,0,0,0,0,0,0,0,0,0,0,-200,-176,-495,-475,-474,-464,-582,-487,-723,-690,-5908,-3683,-2728,-2386,-1861,-1606]} 1. e4 {[%emt 0:00:04]} c5 {[%emt 0:01:36]} 2. Nf3 {[%emt 0:00:16]} d6 {[%emt 0:00:03]} 3. Bc4 {[%emt 0:00:25]} Nf6 {[%emt 0:01:35]} 4. d3 {[%emt 0:00:19]} Nc6 {[%emt 0:01:16]} 5. c3 {[%emt 0:00:23]} e6 {[%emt 0:00:11]} 6. Bb3 {[%emt 0:00:16]} Be7 {[%emt 0:00:09]} 7. O-O {[%emt 0:00:26]} O-O {[%emt 0:00:03]} 8. Re1 {[%emt 0:00:21]} Re8 {[%emt 0:06:44] B50: Sicilian: 2...d6, Miscellaneous.} 9. Nbd2 {[%emt 0:01:14]} d5 {[%emt 0:01:23]} 10. e5 {[%emt 0:05:31]} Nd7 {[%emt 0:00:15] The position is equal.} 11. d4 {[%emt 0:00:08] [#]} Nf8 $146 {[%emt 0:00:35]} ({Predecessor:} 11... b5 12. Nf1 b4 13. Ba4 Qc7 14. Bg5 Bf8 15. cxb4 cxb4 16. Rc1 Bb7 17. Qd3 Rec8 {1-0 (32) Perunovic,M (2550)-Libiszewski,F (2451) Cappelle la Grande 2004}) 12. Nf1 {[%emt 0:01:33]} (12. dxc5 $14 {was preferrable.} Bxc5 13. Bc2) 12... c4 {[%emt 0:03:44]} (12... cxd4 $11 {keeps the balance.} 13. cxd4 a5) 13. Bc2 $16 {[%emt 0:00:09]} b5 {[%emt 0:00:43]} 14. g3 {[%emt 0:04:18]} b4 {[%emt 0:03:28]} 15. h4 {[%emt 0:11:35]} Rb8 {[%emt 0:03:01]} 16. Ng5 {[%emt 0:02:35]} ({White should try} 16. Bd2 $16) 16... bxc3 {[%emt 0:13:51]} 17. bxc3 {[%emt 0:00:33]} h6 {[%emt 0:08:49]} 18. Qh5 {[%emt 0:09:40]} hxg5 $11 {[%emt 0:02:09]} 19. hxg5 {[%emt 0:00:08]} g6 {[%emt 0:06:46]} (19... Qa5 $5 20. Re3 Ba3 $14) 20. Qh4 {[%emt 0:00:57]} Nh7 {[%emt 0:02:00][%cal Rh7g5]} 21. f4 {[%emt 0:00:09]} Bb4 {[%emt 0:04:11]} 22. Bd2 {[%emt 0:11:08]} (22. Re2 $1 $16 {[%cal Re2h2] And now Rh2 would win.} Bxc3 23. Rh2 Bxd4+ 24. Kg2) 22... Nxd4 $1 {[%emt 0:03:37]} 23. cxd4 {[%emt 0:00:33]} Bxd2 $1 {[%emt 0:00:27]} (23... Qb6 $2 24. Rab1 c3 25. Bxc3 Bxc3 26. Rxb6 Bxd4+ 27. Ne3 Bxb6 28. Re2 $18) 24. Nxd2 {[%emt 0:00:11]} Rb2 {[%emt 0:00:35]} 25. Rac1 {[%emt 0:03:07]} Qa5 {[%emt 0:06:04] [#]} (25... Rxa2 26. Kg2 $18) (25... Kh8 $11 {remains equal.}) 26. Re2 $1 $16 {[%emt 0:00:49]} Qc3 {[%emt 0:00:54] [#]} 27. Rh2 $1 {[%emt 0:00:18]} Rxc2 $11 {[%emt 0:00:34]} (27... Kf8 $2 28. Nf1 (28. Qxh7 Rxc2 29. Rxc2 Qxc2 $11) 28... Qxd4+ 29. Kh1 Rxc2 30. Rcxc2 $18) 28. Qxh7+ {[%emt 0:00:19]} Kf8 {[%emt 0:00:02][%cal Bg8f8,Bf8e7,Be7d7][%mdl 32]} 29. Qh8+ {[%emt 0:00:37]} Ke7 {[%emt 0:00:06]} 30. Qf6+ {[%emt 0:00:03]} Kd7 {[%emt 0:00:04] Really sharp!} 31. Rxc2 {[%emt 0:00:05]} Qxc2 {[%emt 0:00:07]} 32. Qxf7+ $2 {[%emt 0:00:05]} (32. Rh7 $11 Qd1+ 33. Nf1 Qxd4+ 34. Kg2 Qe4+ 35. Kf2) 32... Re7 $19 {[%emt 0:00:02]} 33. Qf8 $2 {[%emt 0:00:06]} (33. Qg8 {was the crucial defense.} Qd1+ 34. Nf1 Qxd4+ 35. Kg2 (35. Rf2 c3 $17) 35... Qe4+ 36. Kg1) 33... Qd1+ {[%emt 0:00:36] Black is clearly winning.} 34. Nf1 {[%emt 0:00:02]} Qxd4+ {[%emt 0:00:07]} 35. Kh1 {[%emt 0:00:10]} Bb7 {[%emt 0:03:02] aiming for ...Qb6.} 36. Qb8 {[%emt 0:05:29]} (36. f5 $142 Qe4+ 37. Kg1 exf5 38. Qb8 Qd4+ 39. Rf2) 36... Qb6 {[%emt 0:00:17] Threatens to win with ...d4+.} 37. Nd2 {[%emt 0:01:31]} d4+ {[%emt 0:00:20]} 38. Kg1 {[%emt 0:00:09]} d3+ {[%emt 0:00:07]} 39. Kf1 {[%emt 0:00:13] [#]} Bg2+ $1 {[%emt 0:00:03][%mdl 512] Weighted Error Value: White=0.66/Black=0.24 (precise)} 0-1

[Event "Polish Youth Ekstraliga 2022"]
[Site "Lublin"]
[Date "2022.06.29"]
[Round "5.21"]
[White "Sowinski, Pawel"]
[Black "Bartoszczuk, Adam"]
[Result "1-0"]
[ECO "B41"]
[WhiteElo "2060"]
[BlackElo "1662"]
[Annotator "TA"]
[PlyCount "73"]
[EventDate "2022.06.24"]
[EventType "team-tourn"]
[EventCountry "POL"]
[SourceTitle "playchess.com"]
[Source "ChessBase"]
[SourceQuality "1"]
[TimeControl "40/5400+30:1800+30"]

{[%evp 12,73,35,27,72,60,62,56,82,57,52,49,47,42,54,35,54,12,25,8,41,13,2,0,0,-14,-15,-25,14,0,26,34,48,37,38,50,48,62,34,34,184,193,230,180,186,182,385,183,464,463,449,445,426,229,716,713,29998,2458,29990,29991,29992,29992,29993,29994]} 1. e4 {[%emt 0:01:35]} c5 {[%emt 0:00:07]} 2. Nf3 {[%emt 0:00:03]} e6 {[%emt 0:00:07]} 3. d4 {[%emt 0:00:03]} cxd4 {[%emt 0:00:04]} 4. Nxd4 {[%emt 0:00:03]} a6 {[%emt 0:00:12]} 5. c4 {[%emt 0:00:05]} Nf6 {[%emt 0:00:12]} 6. Nc3 {[%emt 0:00:05]} Qc7 {[%emt 0:00:10]} 7. Be3 {[%emt 0:00:27]} Be7 {[%emt 0:01:08] B41: Sicilian: Kan Variation: 5 c4.} 8. Be2 {[%emt 0:01:46]} d6 {[%emt 0:02:37]} 9. O-O {[%emt 0:00:03] 9.Rc1 is vanishing.} Nbd7 {[%emt 0:01:05] White is slightly better.} 10. h3 {[%emt 0:02:04]} b6 {[%emt 0:00:29] [#]} 11. Rc1 $146 {[%emt 0:05:40]} ({Predecessor:} 11. f4 Bb7 12. Qc2 O-O 13. f5 e5 14. Nb3 b5 15. cxb5 axb5 16. Rac1 Rac8 17. Qd2 {0-1 (36) Shoumi,M (1790)-Nitin,S (2303) Nagpur 2008}) 11... Bb7 {[%emt 0:01:11]} 12. f3 {[%emt 0:01:31]} O-O {[%emt 0:02:52]} 13. b4 {[%emt 0:02:02]} Rac8 {[%emt 0:04:13]} 14. Qb3 {[%emt 0:02:37]} Nh5 {[%emt 0:05:48]} 15. Rfd1 {[%emt 0:11:19]} Qb8 {[%emt 0:09:22]} 16. f4 {[%emt 0:10:57]} Ng3 {[%emt 0:04:19]} 17. Bd3 {[%emt 0:06:22]} Nf6 {[%emt 0:06:25][%cal Rf6e4]} 18. Qb1 {[%emt 0:04:27]} Qa8 {[%emt 0:21:21][%cal Rg3e4]} 19. e5 {[%emt 0:05:58]} Nfe4 {[%emt 0:01:08]} 20. Na4 {[%emt 0:04:22]} Bd8 {[%emt 0:09:45]} (20... Qb8 $5 {[%cal Rd6e5]}) 21. exd6 {[%emt 0:00:26]} Nxd6 {[%emt 0:00:58]} 22. c5 {[%emt 0:10:43]} Ndf5 {[%emt 0:13:59]} 23. Bxf5 {[%emt 0:02:50] Active counter play!} exf5 {[%emt 0:00:45]} 24. Kh2 {[%emt 0:02:39]} Re8 {[%emt 0:03:16]} 25. Re1 {[%emt 0:04:43]} ({Much worse is} 25. Nxb6 Bxb6 26. Qd3 Bc7 $1 $15) 25... Nf1+ {[%emt 0:05:20] A mistake that costs the game.} 26. Rxf1 $18 {[%emt 0:00:09][%cal Ob1b2] aiming for Qb2!} Rxe3 {[%emt 0:00:01]} 27. Rce1 {[%emt 0:01:56]} Rxe1 {[%emt 0:02:05]} 28. Rxe1 {[%emt 0:00:02][%cal Re1e8]} Bc7 $2 {[%emt 0:00:25]} (28... Bc6 {keeps fighting.}) 29. Nxf5 {[%emt 0:02:16] Pair of Knights!} (29. Nxb6 $142 Bxb6 30. Nxf5 (30. cxb6 Be4 $11)) 29... Rd8 {[%emt 0:03:26]} (29... Re8) 30. Qb2 {[%emt 0:05:50][%csl Gf5][%cal Rb2g7]} Bxf4+ {[%emt 0:01:06]} 31. Kg1 {[%emt 0:00:01][%csl Gf5][%cal Rb2g7,Bh2g1,Bg1h1,Bh1g2][%mdl 32]} f6 {[%emt 0:00:18] Hoping for ...Rd2.} 32. Qb3+ $40 {[%emt 0:00:32][%mdl 128] White wants a kill.} (32. Nxb6 $142 Qb8 33. Qb3+ Kh8 34. Qf7) 32... Kf8 $2 {[%emt 0:01:45]} (32... Bd5 33. Qd1 (33. Ne7+ Kf8 $16) 33... Be4) 33. Nxb6 {[%emt 0:03:17] White wants to mate with Re8+.} Qb8 {[%emt 0:00:24] [#]} 34. Re7 {[%emt 0:00:46]} (34. Re8+ $142 $3 {[%mdl 512]} Rxe8 35. Nd7#) 34... Bh2+ {[%emt 0:00:27]} 35. Kh1 {[%emt 0:00:06][%csl Ge7][%cal Rb3f7] White mates.} Bxg2+ {[%emt 0:00:27]} 36. Kxg2 {[%emt 0:00:02][%csl Ge7][%cal Rb3f7]} Rd2+ {[%emt 0:00:10]} 37. Kh1 {[%emt 0:00:09] Weighted Error Value: White=0.29 (precise) /Black=0.69} 1-0